bitfinex/quotes_ETHUSD_20250322
["timestamp","ask_amount","ask_price","bid_price","bid_amount"]
[1742645378596,0.02746515,1996.1,1996.0,5.01002]
[1742645378795,0.02746515,1996.1,1996.0,36.43528548]
[1742645383143,0.02746515,1996.1,1996.0,36.82050674]
[1742645384278,0.02746515,1996.1,1996.0,37.80612333]
[1742645391336,0.02746515,1996.1,1996.0,33.16612333]
[1742645391543,0.02746515,1996.1,1996.0,37.80512333]
[1742645393774,0.02746515,1996.1,1996.0,38.62672333]
[1742645395067,0.02746515,1996.1,1996.0,39.17672333]
[1742645401771,0.02746515,1996.1,1996.0,42.17672333]
[1742645405888,0.02746515,1996.1,1996.0,39.17672333]
[1742645411499,0.02746515,1996.1,1996.0,39.17572333]
[1742645413690,0.02746515,1996.1,1996.0,38.62572333]
[1742645413893,0.02746515,1996.1,1996.0,37.80412333]
[1742645414093,0.02746515,1996.1,1996.0,37.80312333]
[1742645414986,0.02746515,1996.1,1996.0,38.62282333]
[1742645416891,0.02746515,1996.1,1996.0,37.80312333]
[1742645432106,0.02746515,1996.1,1996.0,37.89105981]
[1742645465596,0.02746515,1996.1,1996.0,38.44105981]
[1742645465899,0.02746515,1996.1,1996.0,39.22815981]
[1742645475207,0.02746515,1996.1,1996.0,42.22815981]
[1742645475913,0.02746515,1996.1,1996.0,45.22815981]
[1742645478248,0.02746515,1996.1,1996.0,50.51015981]
[1742645478415,0.02746515,1996.1,1996.0,45.22815981]
[1742645479313,0.7908,1997.1,1996.8,5.00794]
[1742645479470,0.7908,1997.1,1996.9,31.113]
[1742645479665,0.7908,1997.1,1996.9,31.53831739]
[1742645482634,0.7908,1997.1,1996.9,26.90231739]
[1742645482840,0.7908,1997.1,1997.0,4.636]
[1742645483132,0.7908,1997.1,1997.0,4.72247604]
[1742645483308,0.7908,1997.1,1997.0,5.06083811]
[1742645493777,0.7908,1997.1,1997.0,10.06834811]
[1742645493978,0.7908,1997.1,1997.0,5.06083811]
[1742645498089,0.7908,1997.1,1997.0,31.53283811]
[1742645518767,5.00702,1997.2,1997.0,31.53283811]
[1742645521225,10.01421,1997.2,1997.0,31.53283811]
[1742645521533,5.00702,1997.2,1997.0,31.53283811]
[1742645525128,5.82673,1997.3,1997.0,31.53283811]
[1742645531046,0.8199,1997.3,1997.0,31.53283811]
[1742645531236,5.00669,1997.4,1997.0,40.19417592]
[1742645531549,5.76479,1997.5,1997.1,5.00707]
[1742645531735,5.76479,1997.5,1997.1,5.43077337]
[1742645532451,0.7585,1997.5,1997.1,5.43092337]
[1742645532621,5.76487,1997.5,1997.2,0.54309234]
[1742645532823,5.76487,1997.5,1997.1,10.43793337]
[1742645533020,5.76487,1997.5,1997.1,5.43071337]
[1742645533237,0.7585,1997.3,1997.1,0.42370337]
[1742645533629,0.7585,1997.3,1997.2,4.634]
[1742645534658,0.7585,1997.3,1997.1,0.42370337]
[1742645534956,5.76536,1997.3,1997.2,4.634]
[1742645535246,5.76536,1997.3,1997.2,4.97155974]
[1742645535951,5.00686,1997.3,1997.2,4.97155974]
[1742645536156,5.76536,1997.3,1997.2,4.97155974]
[1742645542275,5.76536,1997.3,1997.2,5.05723609]
[1742645547082,5.82795174,1997.3,1997.2,5.05723609]
[1742645547284,6.91140691,1997.3,1997.2,5.05723609]
[1742645548186,6.84881517,1997.3,1997.2,5.05723609]
[1742645549586,6.91140803,1997.3,1997.2,5.05723609]
[1742645550558,9.91140803,1997.3,1997.2,0.42323609]
[1742645551061,5.76236,1996.7,1996.3,26.471]
[1742645551266,5.00901,1996.4,1996.3,31.105]
[1742645551469,5.76311,1996.4,1996.3,31.105]
[1742645552387,5.00901,1996.4,1996.3,31.105]
[1742645553891,5.76266,1996.6,1996.3,31.105]
[1742645554100,5.00877,1996.5,1996.3,34.2155]
[1742645554694,5.00877,1996.5,1996.4,0.20051725]
[1742645558911,5.00877,1996.5,1996.4,0.29866436]
[1742645561105,5.07138469,1996.5,1996.4,0.29866436]
[1742645561602,6.84297916,1996.5,1996.4,0.29866436]
[1742645561824,9.78036447,1996.5,1996.4,0.29866436]
[1742645562275,5.00926,1996.3,1996.2,4.635]
[1742645562470,5.77286,1996.3,1996.2,4.83632022]
[1742645565214,6.851056,1996.3,1996.2,4.83632022]
[1742645572227,5.77286,1996.3,1996.2,4.83632022]
[1742645572419,5.77286,1996.3,1996.2,4.93568459]
[1742645575751,5.00926,1996.3,1996.2,4.93568459]
[1742645580857,8.85138415,1996.3,1996.2,0.30068459]
[1742645583550,8.78876,1996.3,1996.2,0.30068459]
[1742645583725,10.168546,1996.3,1996.2,0.30068459]
[1742645585364,8.00926,1996.3,1996.2,0.30068459]
[1742645586968,8.900889,1996.3,1996.2,0.30068459]
[1742645602365,8.83826,1996.3,1996.2,0.30068459]
[1742645604765,8.90089093,1996.3,1996.2,0.30068459]
[1742645606266,8.9008909,1996.3,1996.2,0.30068459]
[1742645606445,10.29188999,1996.3,1996.2,0.30068459]
[1742645606646,10.22925909,1996.3,1996.2,0.30068459]
[1742645613187,9.40025909,1996.3,1996.2,0.30068459]
[1742645615167,9.4628898,1996.3,1996.2,0.30068459]
[1742645617661,10.2906898,1996.3,1996.2,0.30068459]
[1742645617861,10.22805909,1996.3,1996.2,0.30068459]
[1742645619594,10.22805909,1996.3,1996.2,4.59e-06]
[1742645619897,10.22805909,1996.3,1996.2,0.25135828]
[1742645620098,5.01052,1995.8,1995.7,4.636]
[1742645620265,8.01052,1995.8,1995.7,4.636]
[1742645620465,5.01077,1995.7,1995.6,27.2614]
[1742645620661,8.01077,1995.7,1995.6,27.2614]
[1742645623197,8.01077,1995.7,1995.6,27.384602]
[1742645627402,8.01077,1995.7,1995.6,27.51592336]
[1742645632881,8.01077,1995.7,1995.6,26.74252336]
[1742645635691,8.01077,1995.7,1995.6,0.25452336]
[1742645643922,8.01077,1995.7,1995.6,1.00532336]
[1742645645917,8.07340825,1995.7,1995.6,1.00532336]
[1742645646225,8.07340825,1995.7,1995.6,0.25452336]
[1742645646794,8.01077,1995.7,1995.6,0.25452336]
[1742645646995,5.01102,1995.6,1995.5,4.636]
[1742645647343,5.01102,1995.6,1995.5,4.76754264]
[1742645650724,5.01102,1995.6,1995.5,4.89114643]
[1742645658039,0.8209,1996.1,1995.5,5.65294643]
[1742645658237,3.0,1995.9,1995.6,0.7618]
[1742645658416,10.02104,1995.9,1995.6,0.7618]
[1742645658626,5.01052,1995.9,1995.7,0.12280026]
[1742645658831,5.01052,1995.9,1995.8,0.7618]
[1742645659026,5.01052,1995.9,1995.8,0.88419855]
[1742645660748,5.01005,1996.0,1995.8,0.88419855]
[1742645660950,5.01005,1996.0,1995.9,4.636]
[1742645661150,5.0095,1996.3,1996.0,0.7618]
[1742645661331,8.00952,1996.2,1996.0,0.7618]
[1742645661526,5.0095,1996.3,1996.0,0.7618]
[1742645661741,5.0095,1996.3,1996.1,0.7618]
[1742645662058,5.0095,1996.3,1996.2,0.12079213]
[1742645662247,5.0095,1996.3,1996.2,0.13062581]
[1742645662556,0.8209,1996.7,1996.2,5.00943]
[1742645662753,5.00856,1996.6,1996.3,10.40685]
[1742645662919,5.00833,1996.7,1996.3,11.948486]
[1742645663122,5.00833,1996.7,1996.4,0.7618]
[1742645663328,5.0082,1996.8,1996.4,0.7618]
[1742645663529,5.0082,1996.8,1996.4,5.77072]
[1742645663749,5.00802,1996.8,1996.5,0.7631]
[1742645664325,5.00781,1996.9,1996.5,5.77185]
[1742645664945,0.8069,1997.3,1996.6,5.00849]
[1742645665123,5.00744,1997.1,1996.8,0.7631]
[1742645665319,0.86950075,1997.3,1996.8,0.7631]
[1742645665320,5.00701,1997.2,1996.8,0.7631]
[1742645665559,5.00701,1997.2,1996.8,5.77103]
[1742645665855,5.00701,1997.2,1996.9,0.11798245]
[1742645666461,5.00729,1997.1,1996.9,0.11798245]
[1742645666659,6.008387,1997.2,1996.8,5.77107]
[1742645666863,3.0,1997.2,1996.9,27.37008245]
[1742645667030,3.0,1997.2,1996.9,32.37780245]
[1742645667451,5.00676,1997.3,1996.9,32.37780245]
[1742645667956,8.00655,1997.4,1997.0,5.00734]
[1742645668159,13.01328,1997.4,1997.2,0.7631]
[1742645668462,13.01328,1997.4,1997.3,0.1163778]
[1742645669031,14.314608,1997.4,1997.3,0.1163778]
[1742645669373,5.007,1997.2,1997.1,4.634]
[1742645670065,5.00682,1997.3,1997.1,4.634]
[1742645670545,3.0,1997.4,1997.1,9.6412]
[1742645670750,5.00626,1997.5,1997.2,1.72722]
[1742645671859,5.00652,1997.4,1997.2,1.72722]
[1742645672039,5.00631,1997.5,1997.2,1.72722]
[1742645672953,5.00631,1997.5,1997.3,0.1163778]
[1742645677340,5.00631,1997.5,1997.4,0.12675613]
[1742645677742,5.00631,1997.5,1997.4,0.24273287]
[1742645678339,6.007542,1997.5,1997.4,0.24273287]
[1742645678843,6.07012846,1997.5,1997.4,0.24273287]
[1742645679043,6.787242,1997.5,1997.4,0.24273287]
[1742645679786,6.007542,1997.5,1997.4,0.24273287]
[1742645679961,5.00631,1997.5,1997.4,0.24273287]
[1742645684688,10.01223,1997.6,1997.4,1.03763287]
[1742645684977,10.01221,1997.6,1997.4,1.03763287]
[1742645685479,5.00625,1997.5,1997.4,1.03763287]
[1742645689977,5.00601,1997.6,1997.4,1.03763287]
[1742645693274,5.00615,1997.6,1997.4,1.03763287]
[1742645693590,10.01236,1997.6,1997.4,1.03763287]
[1742645693987,5.00615,1997.6,1997.4,1.03763287]
[1742645694572,10.01236,1997.6,1997.4,1.03763287]
[1742645694780,10.01234,1997.6,1997.4,1.03763287]
[1742645694981,5.00615,1997.6,1997.4,1.03763287]
[1742645696808,5.00615,1997.6,1997.4,0.24273287]
[1742645697393,5.00625,1997.5,1997.4,0.24273287]
[1742645697581,5.00615,1997.6,1997.4,0.24273287]
[1742645697982,10.01236,1997.6,1997.4,0.24273287]
[1742645698189,5.00625,1997.5,1997.4,0.24273287]
[1742645699535,6.00749,1997.5,1997.4,0.24273287]
[1742645699826,6.00749,1997.5,1997.4,4.87373287]
[1742645700497,5.00625,1997.5,1997.4,4.87373287]
[1742645700697,5.00615,1997.6,1997.4,4.87373287]
[1742645700899,10.01237,1997.6,1997.4,4.87373287]
[1742645701094,5.00615,1997.6,1997.4,4.87373287]
[1742645701313,5.00615,1997.6,1997.4,5.64723287]
[1742645702440,5.00589,1997.7,1997.4,5.64723287]
[1742645703332,10.01184,1997.7,1997.4,5.64723287]
[1742645703499,5.00589,1997.7,1997.4,5.64723287]
[1742645704075,3.0,1997.7,1997.4,5.64723287]
[1742645704242,5.00601,1997.6,1997.4,5.64723287]
[1742645705070,5.00601,1997.6,1997.4,32.11523287]
[1742645708153,10.01181,1997.7,1997.4,32.11523287]
[1742645709160,5.00605,1997.6,1997.4,32.11523287]
[1742645710954,5.00605,1997.6,1997.4,31.34173287]
[1742645711123,5.00625,1997.5,1997.4,26.71073287]
[1742645711327,5.00625,1997.5,1997.4,31.34173287]
[1742645714985,5.00625,1997.5,1997.4,26.71073287]
[1742645719478,5.00625,1997.5,1997.4,0.24273287]
[1742645721276,5.85703393,1997.5,1997.4,0.24273287]
[1742645721477,6.88075839,1997.5,1997.4,0.24273287]
[1742645722075,5.79445,1997.5,1997.4,0.24273287]
[1742645724364,5.00625,1997.5,1997.4,0.24273287]
[1742645724550,5.00605,1997.6,1997.4,0.24273287]
[1742645724750,10.01226,1997.6,1997.4,0.24273287]
[1742645725150,5.00625,1997.5,1997.4,0.24273287]
[1742645736903,6.79593804,1997.5,1997.4,0.24273287]
[1742645737276,6.79593804,1997.5,1997.4,0.20283778]
[1742645737484,6.79593804,1997.5,1996.7,5.77305]
[1742645737485,5.00726,1997.1,1996.7,5.77305]
[1742645737781,5.00754,1997.0,1996.8,0.11838371]
[1742645737979,5.00811,1996.8,1996.5,1.78812408]
[1742645738206,5.00811,1996.8,1996.6,4.76718636]
[1742645739413,5.00811,1996.8,1996.6,0.11918636]
[1742645739579,5.00811,1996.8,1996.7,4.647]
[1742645739780,5.00811,1996.8,1996.7,4.76578501]
[1742645740394,5.00811,1996.8,1996.7,4.76678501]
[1742645741700,5.00811,1996.8,1996.7,0.11878501]
[1742645741889,5.00811,1996.8,1996.7,4.76578501]
[1742645742089,5.00811,1996.8,1996.7,4.647]
[1742645742296,5.00811,1996.8,1996.7,4.76578501]
[1742645747424,5.00787,1996.9,1996.7,4.76578501]
[1742645752195,5.00787,1996.9,1996.8,0.0701567]
[1742645752391,5.00787,1996.9,1996.7,4.76578501]
[1742645752730,5.00787,1996.9,1996.8,0.0701567]
[1742645753028,5.00787,1996.9,1996.7,4.76578501]
[1742645753195,5.00787,1996.9,1996.8,0.18854041]
[1742645759333,5.00755,1997.0,1996.8,0.18854041]
[1742645759638,5.00776,1996.9,1996.8,0.18854041]
[1742645770722,5.81366,1996.9,1996.8,0.18854041]
[1742645770921,6.90204077,1996.9,1996.8,4.82154041]
[1742645771371,5.00776,1996.9,1996.8,4.82154041]
[1742645773142,5.007,1997.2,1996.8,9.82944041]
[1742645773347,5.00736,1997.1,1996.8,4.82154041]
[1742645773759,10.01481,1997.1,1996.8,4.82154041]
[1742645774137,5.00736,1997.1,1996.8,4.82154041]
[1742645774437,5.00736,1997.1,1996.8,5.88014045]
[1742645776574,5.0066,1997.4,1996.9,0.7563]
[1742645776763,5.00676,1997.3,1997.0,5.19555757]
[1742645777147,0.8059,1997.5,1997.0,5.19555757]
[1742645777148,5.00666,1997.4,1997.0,5.19555757]
[1742645777358,5.00686,1997.3,1997.1,0.51955576]
[1742645777574,5.00666,1997.4,1997.2,4.635]
[1742645778075,5.00628,1997.5,1997.2,5.3913]
[1742645778574,5.00553,1997.8,1997.4,5.00647]
[1742645778885,5.00578,1997.7,1997.5,26.474]
[1742645779053,5.00578,1997.7,1997.6,4.637]
[1742645780476,5.00578,1997.7,1997.6,4.75217473]
[1742645782281,5.00578,1997.7,1997.6,4.82184764]
[1742645786596,5.00553,1997.8,1997.6,4.82184764]
[1742645787454,5.00553,1997.8,1997.6,8.0327924]
[1742645790110,5.00532,1997.9,1997.6,8.0327924]
[1742645792691,5.00551,1997.8,1997.6,8.0327924]
[1742645792859,5.00532,1997.9,1997.6,8.0327924]
[1742645793058,10.01016,1998.0,1997.6,8.0327924]
[1742645793298,10.01016,1998.0,1997.7,0.80327924]
[1742645793590,5.00535,1997.9,1997.8,0.18314004]
[1742645793897,0.1184762,1998.1,1997.8,0.99674004]
[1742645794102,0.1184762,1998.1,1997.8,6.00211004]
[1742645794397,5.005,1998.0,1997.9,0.52960221]
[1742645794596,5.005,1998.0,1997.9,4.643]
[1742645796270,0.1184762,1998.1,1997.9,4.643]
[1742645797365,0.1184762,1998.1,1998.0,0.18130418]
[1742645797800,5.1232262,1998.1,1998.0,0.18130418]
[1742645804504,5.18579261,1998.1,1998.0,0.18130418]
[1742645804709,7.04916487,1998.1,1998.0,0.18130418]
[1742645805609,6.98659846,1998.1,1998.0,0.18130418]
[1742645807692,5.8915262,1998.1,1998.0,0.18130418]
[1742645807892,5.1232262,1998.1,1998.0,0.18130418]
[1742645814242,5.1857914,1998.1,1998.0,0.18130418]
[1742645815539,5.1232262,1998.1,1998.0,0.18130418]
[1742645815709,5.18579163,1998.1,1998.0,0.18130418]
[1742645815909,5.1232262,1998.1,1998.0,0.18130418]
[1742645818332,7.02216716,1998.1,1998.0,0.18130418]
[1742645818534,6.95960182,1998.1,1998.0,0.18130418]
[1742645818829,9.95960182,1998.1,1998.0,0.18130418]
[1742645821258,10.02217286,1998.1,1998.0,0.18130418]
[1742645826764,9.95960182,1998.1,1998.0,0.18130418]
[1742645826932,10.02217726,1998.1,1998.0,0.18130418]
[1742645831906,9.95960182,1998.1,1998.0,0.18130418]
[1742645835001,9.95960182,1998.1,1998.0,0.13130418]
[1742645835181,9.95960182,1998.1,1998.0,0.17130418]
[1742645835371,10.02217454,1998.1,1998.0,0.17130418]
[1742645836400,5.00575,1997.7,1997.6,5.418]
[1742645838574,5.00555,1997.8,1997.6,5.418]
[1742645838871,5.00575,1997.7,1997.6,5.52317473]
[1742645842059,5.00575,1997.7,1997.6,4.74317473]
[1742645842360,5.00575,1997.7,1997.6,4.80170266]
[1742645845117,5.00575,1997.7,1997.6,4.79670266]
[1742645845329,9.00688,1997.7,1997.6,0.16370266]
[1742645845553,9.06946165,1997.7,1997.6,0.16370266]
[1742645846955,9.85156165,1997.7,1997.6,0.16370266]
[1742645847147,5.00717,1997.2,1997.0,0.8308]
[1742645847343,5.00726,1997.1,1997.0,0.8308]
[1742645847533,5.00773,1997.0,1996.9,4.636]
[1742645848429,5.07032677,1997.0,1996.9,4.636]
[1742645848629,5.00773,1997.0,1996.9,4.636]
[1742645849349,6.08744,1997.0,1996.9,4.636]
[1742645850363,5.00776,1996.9,1996.8,26.465]
[1742645850555,5.07036022,1996.9,1996.8,26.465]
[1742645850759,5.07036022,1996.9,1996.8,26.57338371]
[1742645851845,5.07036068,1996.9,1996.8,26.57338371]
[1742645852055,5.00776,1996.9,1996.8,26.57338371]
[1742645855968,6.89938,1996.9,1996.8,0.10838371]
[1742645856135,5.00924,1996.4,1996.1,5.4658]
[1742645856335,5.00929,1996.3,1996.1,5.4658]
[1742645856558,5.00929,1996.3,1996.2,0.11079213]
[1742645856746,5.00929,1996.3,1996.1,5.4658]
[1742645856942,5.00929,1996.3,1996.2,0.11079213]
[1742645857147,5.00951,1996.2,1996.1,5.4658]
[1742645857855,5.00951,1996.2,1996.1,0.8308]
[1742645858055,5.00951,1996.2,1996.1,5.4798]
[1742645859136,5.00929,1996.3,1995.9,26.472]
[1742645859137,5.01002,1996.0,1995.9,27.2766]
[1742645859338,10.01978,1996.1,1995.9,27.2766]
[1742645859536,5.00981,1996.1,1995.9,27.2766]
[1742645859736,5.01002,1996.0,1995.9,27.2766]
[1742645859937,5.01002,1996.0,1995.9,31.9296]
[1742645864072,5.00982,1996.1,1995.9,31.9296]
[1742645869096,5.00982,1996.1,1995.9,31.125]
[1742645869260,10.01983,1996.1,1995.9,31.125]
[1742645870189,5.00982,1996.1,1995.9,31.125]
[1742645871389,5.00982,1996.1,1996.0,0.8046]
[1742645872168,5.00982,1996.1,1996.0,0.85387859]
[1742645872989,5.00982,1996.1,1996.0,0.04927859]
[1742645874592,5.00953,1996.2,1996.0,0.04927859]
[1742645877605,8.0089,1996.5,1996.0,0.04927859]
[1742645877894,5.00909,1996.4,1996.1,0.7865]
[1742645878091,3.0,1996.5,1996.1,6.38080786]
[1742645878261,11.10852,1996.6,1996.2,10.85427233]
[1742645878463,11.10852,1996.6,1996.3,4.65]
[1742645878793,11.10852,1996.6,1996.4,0.04902398]
[1742645878961,5.00852,1996.6,1996.4,0.04902398]
[1742645880767,5.00876,1996.5,1996.4,0.04902398]
[1742645883065,6.010488,1996.5,1996.4,0.04902398]
[1742645883391,6.767988,1996.5,1996.4,0.04902398]
[1742645883961,6.83060145,1996.5,1996.4,0.04902398]
[1742645887197,6.767988,1996.5,1996.4,0.04902398]
[1742645890806,6.83060141,1996.5,1996.4,0.04902398]
[1742645892405,5.00876,1996.5,1996.4,0.04902398]
[1742645919448,5.00876,1996.5,1996.3,4.635]
[1742645919654,5.00876,1996.5,1996.4,0.04847995]
[1742645920153,5.00876,1996.5,1996.4,0.15846911]
[1742645922755,5.83686,1996.5,1996.4,0.15846911]
[1742645922928,6.921406,1996.5,1996.4,0.15846911]
[1742645924162,6.093306,1996.5,1996.4,0.15846911]
[1742645924378,5.00876,1996.5,1996.4,0.15846911]
[1742645942037,5.07136914,1996.5,1996.4,0.15846911]
[1742645942237,5.80656,1996.5,1996.4,0.15846911]
[1742645943663,5.86917528,1996.5,1996.4,0.15846911]
[1742645943865,6.89433753,1996.5,1996.4,0.15846911]
[1742645946752,6.09653753,1996.5,1996.4,0.15846911]
[1742645947851,12.19653753,1996.5,1996.4,0.15846911]
[1742645951779,11.10876,1996.5,1996.4,0.15846911]
[1742645953576,5.00876,1996.5,1996.4,0.15846911]
[1742645961048,5.89497563,1996.5,1996.4,0.15846911]
[1742645962907,5.83236,1996.5,1996.4,0.15846911]
[1742645963383,5.89497609,1996.5,1996.4,0.15846911]
[1742645963582,7.2146276,1996.5,1996.4,0.15846911]
[1742645963785,7.15201151,1996.5,1996.4,0.15846911]
[1742645966883,7.21462706,1996.5,1996.4,0.15846911]
[1742645967285,7.15201151,1996.5,1996.4,0.15846911]
[1742645969088,9.44495056,1996.5,1996.4,0.15846911]
[1742645969303,7.15201151,1996.5,1996.4,0.15846911]
[1742645978613,7.2146273,1996.5,1996.4,0.15846911]
[1742645982515,6.32841151,1996.5,1996.4,0.15846911]
[1742645986017,5.00876,1996.5,1996.4,0.15846911]
[1742645987321,5.00876,1996.5,1996.4,0.92166911]
[1742645997333,5.00876,1996.5,1996.4,0.15846911]
[1742646007553,5.76316,1996.5,1996.4,0.15846911]
[1742646010064,5.00876,1996.5,1996.4,0.15846911]
[1742646016156,5.00765,1997.0,1996.6,5.00843]
[1742646016359,5.00786,1996.9,1996.6,8.26850205]
[1742646016561,5.00801,1996.8,1996.7,0.15674131]
[1742646017564,5.00786,1996.9,1996.7,0.15674131]
[1742646018456,5.00801,1996.8,1996.7,0.15674131]
[1742646020465,5.07061431,1996.8,1996.7,0.15674131]
[1742646020632,9.3820947,1996.8,1996.7,0.15674131]
[1742646020831,7.08915565,1996.8,1996.7,0.15674131]
[1742646021562,9.3820947,1996.8,1996.7,0.15674131]
[1742646021776,12.3820947,1996.8,1996.7,0.15674131]
[1742646021979,12.31949039,1996.8,1996.7,0.15674131]
[1742646023679,11.53809039,1996.8,1996.7,0.15674131]
[1742646023852,20.72942944,1996.8,1996.7,0.15674131]
[1742646024559,18.43649039,1996.8,1996.7,0.15674131]
[1742646025484,20.72942944,1996.8,1996.7,0.15674131]
[1742646025681,18.43649039,1996.8,1996.7,0.15674131]
[1742646031487,17.63809039,1996.8,1996.7,0.3241819]
[1742646032492,16.40094905,1996.8,1996.7,0.3241819]
[1742646032868,8.00801,1996.8,1996.7,0.3241819]
[1742646033974,8.00801,1996.8,1996.7,4.9571819]
[1742646034166,5.00786,1996.9,1996.7,5.7359819]
[1742646035193,10.01582,1996.9,1996.7,5.7359819]
[1742646035894,5.00801,1996.8,1996.7,5.7359819]
[1742646036094,5.00801,1996.8,1996.7,6.30958009]
[1742646036913,5.00786,1996.9,1996.7,6.30958009]
[1742646039307,10.0158,1996.9,1996.7,6.30958009]
[1742646039507,10.0158,1996.9,1996.7,5.7359819]
[1742646039820,5.00801,1996.8,1996.7,5.7359819]
[1742646046013,10.01583,1996.9,1996.7,5.7359819]
[1742646046714,5.00786,1996.9,1996.7,5.7359819]
[1742646047217,5.00801,1996.8,1996.7,5.7359819]
[1742646047386,5.00801,1996.8,1996.7,8.95748009]
[1742646048912,5.00801,1996.8,1996.7,4.9571819]
[1742646049096,7.30094905,1996.8,1996.7,4.9571819]
[1742646049281,10.30094905,1996.8,1996.7,0.3241819]
[1742646050517,16.40094905,1996.8,1996.7,0.3241819]
[1742646054009,17.21034905,1996.8,1996.7,0.3241819]
[1742646054312,19.43216996,1996.8,1996.7,0.3241819]
[1742646058921,21.72510901,1996.8,1996.7,0.3241819]
[1742646060623,19.43216996,1996.8,1996.7,0.3241819]
[1742646060839,16.40094905,1996.8,1996.7,0.3241819]
[1742646061012,10.30094905,1996.8,1996.7,0.3241819]
[1742646064913,8.00801,1996.8,1996.7,0.3241819]
[1742646066158,10.30094905,1996.8,1996.7,0.3241819]
[1742646066355,8.00801,1996.8,1996.7,0.3241819]
[1742646068859,11.11294905,1996.8,1996.7,0.3241819]
[1742646069014,12.72502995,1996.8,1996.7,0.3241819]
[1742646069629,11.91302995,1996.8,1996.7,0.3241819]
[1742646069831,8.00801,1996.8,1996.7,0.3241819]
[1742646070245,5.00801,1996.8,1996.7,5.7570819]
[1742646070567,5.00779,1996.9,1996.7,5.7570819]
[1742646072950,10.01573,1996.9,1996.7,5.7570819]
[1742646073247,10.01573,1996.9,1996.7,6.562084]
[1742646074748,5.00779,1996.9,1996.7,6.562084]
[1742646075546,3.0,1997.1,1996.7,13.86328305]
[1742646075722,5.00751,1997.0,1996.8,0.753]
[1742646075922,3.0,1997.1,1996.9,0.10798245]
[1742646075923,5.00726,1997.1,1996.9,0.10798245]
[1742646076229,5.00726,1997.1,1996.9,0.31539215]
[1742646076751,10.01469,1997.1,1996.8,0.753]
[1742646077047,5.00726,1997.1,1996.8,0.753]
[1742646077246,9.1,1997.3,1996.8,0.753]
[1742646077247,11.10684,1997.3,1997.0,3.04593905]
[1742646077450,11.10684,1997.3,1997.1,4.632]
[1742646077451,5.00683,1997.3,1997.1,4.632]
[1742646077754,5.00683,1997.3,1997.1,5.1705]
[1742646078119,10.01379,1997.3,1997.1,5.1705]
[1742646078343,10.01381,1997.3,1997.1,5.1705]
[1742646078546,8.00651,1997.4,1997.1,5.1705]
[1742646079022,5.00678,1997.3,1997.1,5.1705]
[1742646079237,5.00678,1997.3,1997.2,0.51705]
[1742646079423,8.00655,1997.4,1997.2,0.51705]
[1742646079654,5.00675,1997.3,1997.2,0.51705]
[1742646082918,5.00675,1997.3,1997.2,0.73129723]
[1742646083120,13.01322,1997.4,1997.2,0.73129723]
[1742646083525,5.00675,1997.3,1997.2,0.73129723]
[1742646085064,4.95675,1997.3,1997.2,0.73129723]
[1742646087445,8.00655,1997.4,1997.2,0.73129723]
[1742646087653,5.00675,1997.3,1997.2,0.73129723]
[1742646087954,8.00655,1997.4,1997.2,0.73129723]
[1742646089262,5.00675,1997.3,1997.2,0.73129723]
[1742646090362,8.00655,1997.4,1997.2,0.73129723]
[1742646090530,13.01329,1997.4,1997.2,0.73129723]
[1742646090739,5.00675,1997.3,1997.2,0.73129723]
[1742646095673,8.00655,1997.4,1997.2,0.73129723]
[1742646095674,5.00655,1997.4,1997.2,0.73129723]
[1742646097878,2.29293905,1997.5,1997.2,0.73129723]
[1742646098054,0.8072,1997.8,1997.4,2.29293905]
[1742646098255,0.8072,1997.8,1997.5,4.8444905]
[1742646098587,5.00586,1997.7,1997.5,4.8444905]
[1742646099078,10.01183,1997.7,1997.5,4.8444905]
[1742646099683,5.00586,1997.7,1997.5,4.8444905]
[1742646099880,5.0055,1997.8,1997.5,7.6218786]
[1742646100084,5.0055,1997.8,1997.6,0.8081]
[1742646100380,8.0053,1997.9,1997.7,0.21249654]
[1742646101176,10.01013,1998.0,1997.7,0.21249654]
[1742646101377,5.00502,1998.0,1997.7,0.21249654]
[1742646101549,5.00502,1998.0,1997.7,0.5438501]
[1742646102485,5.00538,1997.9,1997.7,0.5438501]
[1742646102659,10.01076,1997.9,1997.7,0.5438501]
[1742646102858,5.00516,1998.0,1997.7,0.5438501]
[1742646103260,5.00511,1998.0,1997.7,0.5438501]
[1742646103971,8.1233562,1998.1,1997.7,0.5438501]
[1742646104170,13.1283062,1998.1,1997.7,0.5438501]
[1742646104665,5.00503,1998.0,1997.7,0.5438501]
[1742646104872,5.00503,1998.0,1997.7,0.92668804]
[1742646106569,8.1232862,1998.1,1997.7,3.21962709]
[1742646106747,3.1184762,1998.1,1997.8,1.13006271]
[1742646106951,8.1233862,1998.1,1997.9,4.84233536]
[1742646108451,3.1184762,1998.1,1997.9,4.84233536]
[1742646108682,10.42104193,1998.0,1997.9,0.21233536]
[1742646108867,17.16553905,1998.0,1997.9,0.21233536]
[1742646109071,5.00575,1997.8,1997.4,5.4441]
[1742646109417,5.00564,1997.8,1997.5,0.21231538]
[1742646109595,5.00585,1997.7,1997.5,0.21231538]
[1742646110487,10.01179,1997.7,1997.5,0.21231538]
[1742646110653,5.00585,1997.7,1997.5,0.21231538]
[1742646112890,10.01177,1997.7,1997.5,0.21231538]
[1742646113083,5.00585,1997.7,1997.5,0.21231538]
[1742646116087,10.01174,1997.7,1997.5,0.21231538]
[1742646117387,5.00585,1997.7,1997.5,0.21231538]
[1742646117888,5.00538,1997.9,1997.5,5.21854538]
[1742646118088,10.01076,1997.9,1997.5,5.21854538]
[1742646118492,5.00538,1997.9,1997.5,5.21854538]
[1742646118697,10.01074,1997.9,1997.5,0.21231538]
[1742646118863,10.01077,1997.9,1997.5,0.21231538]
[1742646119465,5.1233762,1998.1,1997.7,0.7799]
[1742646119665,3.0,1998.0,1997.8,4.84881097]
[1742646120591,0.1184762,1998.1,1997.8,5.41168207]
[1742646121159,0.1184762,1998.1,1997.8,12.71012112]
[1742646121396,0.1184762,1998.1,1998.0,2.29293905]
[1742646121699,0.1184762,1998.1,1998.0,2.50446169]
[1742646121867,0.1184762,1998.1,1998.0,7.50946169]
[1742646122062,0.1184762,1998.1,1998.0,1.91090189]
[1742646122464,0.1184762,1998.1,1998.0,0.58145672]
[1742646123896,0.1184762,1998.1,1998.0,6.36635672]